bitfinex-derivatives/quotes_SOLF0:USTF0_20220108
["timestamp","ask_amount","ask_price","bid_price","bid_amount"]
[1641665147518,8.0,134.37,134.34,4.0]
[1641665147717,7.44102984,134.47,134.35,4.0]
[1641665147916,27.66479,134.49,134.38,27.66479]
[1641665148119,40.99780933,134.52,134.42,4.0]
[1641665148319,48.13339178,134.54,134.38,29.52379]
[1641665148517,48.13339178,134.54,134.46,7.43328626]
[1641665148717,40.99780933,134.54,134.46,7.43328626]
[1641665148917,11.43881574,134.51,134.38,27.66479]
[1641665149117,5.94830881,134.5,134.38,35.1022226]
[1641665149318,5.94830881,134.5,134.38,27.66479]
[1641665149520,7.13628238,134.53,134.45,7.43383883]
[1641665149718,5.94522045,134.57,134.46,7.43328626]
[1641665150019,9.94522045,134.57,134.5,27.66479]
[1641665150218,5.94700589,134.53,134.42,1.858]
[1641665150419,5.94700589,134.53,134.41,7.43604997]
[1641665150618,5.94700589,134.53,134.41,11.43604997]
[1641665151020,5.94700589,134.53,134.41,4.0]
[1641665151219,5.94700589,134.53,134.44,7.4343915]
[1641665151720,5.94720585,134.52,134.42,16.2586449]
[1641665151920,5.94720585,134.52,134.46,27.66479]
[1641665152124,5.94775094,134.51,134.46,27.66479]
[1641665154020,27.66479,134.55,134.46,27.66479]
[1641665154220,5.94727488,134.52,134.46,27.66479]
[1641665154623,7.13420625,134.57,134.46,27.66479]
[1641665154823,7.13420625,134.57,134.46,39.0978]
[1641665155224,35.0978,134.61,134.49,7.43162901]
[1641665155225,27.66479,134.61,134.49,7.43162901]
[1641665155423,8.55650901,134.64,134.52,7.4296965]
[1641665155623,8.55650901,134.64,134.53,1.857]
[1641665156027,27.66479,134.68,134.59,4.0]
[1641665156229,5.93825901,134.72,134.6,7.42555877]
[1641665156426,5.93825901,134.72,134.64,7.42335387]
[1641665157229,5.93825901,134.72,134.66,4.0]
[1641665157429,4.0,134.76,134.64,7.42335387]
[1641665157627,5.93616412,134.77,134.64,7.42335387]
[1641665157828,5.93616412,134.77,134.64,11.42335387]
[1641665158027,4.0,134.75,134.67,27.66479]
[1641665158228,5.93783489,134.73,134.67,27.66479]
[1641665158728,5.93910822,134.71,134.6,9.28055877]
[1641665158928,5.93910822,134.71,134.6,7.42555877]
[1641665159329,5.93910822,134.71,134.61,1.856]
[1641665159530,5.93910822,134.71,134.66,4.0]
[1641665159731,7.12234314,134.79,134.69,7.42032427]
[1641665160131,7.12234314,134.79,134.73,4.0]
[1641665160330,15.51748409,134.81,134.7,29.51979]
[1641665161230,21.09651453,134.8,134.7,1.855]
[1641665161431,5.93594693,134.78,134.68,27.66479]
[1641665161730,9.93594693,134.78,134.68,27.66479]
[1641665161930,4.0,134.74,134.64,1.855]
[1641665162133,27.66479,134.71,134.59,1.856]
[1641665162333,4.0,134.69,134.59,1.856]
[1641665162531,5.94045269,134.67,134.58,27.66479]
[1641665162731,5.94045269,134.67,134.57,7.4269375]
[1641665162933,5.94045269,134.67,134.54,1.857]
[1641665163133,5.94273433,134.62,134.54,1.857]
[1641665163333,5.94273433,134.62,134.53,66.1659]
[1641665163731,9.94273433,134.62,134.53,66.1659]
[1641665163932,5.94370847,134.6,134.49,69.9246]
[1641665164133,5.94370847,134.6,134.51,7.43024854]
[1641665164333,7.42831674,134.7,134.55,7.42831674]
[1641665164633,12.58364942,134.7,134.56,1.857]
[1641665164833,5.15533268,134.7,134.56,1.857]
[1641665165032,5.15533268,134.7,134.55,4.0]
[1641665165232,5.15533268,134.7,134.59,4.0]
[1641665165433,5.15533268,134.7,134.6,1.856]
[1641665165732,5.93859495,134.72,134.6,9.28128309]
[1641665165935,5.93859495,134.72,134.6,7.42528309]
[1641665166133,27.66479,134.7,134.6,7.42528309]
[1641665166332,5.94046714,134.67,134.59,27.66479]
[1641665166633,7.43218135,134.63,134.55,1.856]
[1641665166833,5.942752,134.62,134.51,7.43024854]
[1641665167033,4.0,134.59,134.49,17.37448409]
[1641665167233,7.43356253,134.6,134.46,5.858]
[1641665167234,5.94484607,134.58,134.46,5.858]
[1641665167435,9.94484607,134.58,134.44,5.858]
[1641665167634,5.94584843,134.55,134.44,4.0]
[1641665167835,5.94584843,134.55,134.43,70.719]
[1641665168037,27.66479,134.53,134.44,27.66479]
[1641665168235,33.61063843,134.55,134.44,31.66479]
[1641665168435,5.94385494,134.6,134.46,4.0]
[1641665168635,13.37769377,134.6,134.47,1.858]
[1641665169035,17.37769377,134.6,134.47,1.858]
[1641665169236,17.38070051,134.57,134.47,1.858]
[1641665169536,5.94679341,134.53,134.43,72.577]
[1641665169735,5.94679341,134.53,134.43,4.0]
[1641665169937,5.94679341,134.53,134.42,7.43549706]
[1641665170141,27.66479,134.49,134.4,1.859]
[1641665170337,27.66479,134.49,134.39,7.43687949]
[1641665170537,5.94992062,134.46,134.36,45.04127409]
[1641665170737,5.94992062,134.46,134.36,50.62081316]
[1641665171737,5.94992062,134.46,134.36,35.10332907]
[1641665172137,33.61471062,134.46,134.36,35.10332907]
[1641665173339,33.61471062,134.46,134.36,39.10332907]
[1641665173638,7.137882,134.5,134.39,7.43715603]
[1641665173839,7.137882,134.5,134.41,4.0]
[1641665174041,13.08075738,134.55,134.42,4.0]
[1641665174240,13.08075738,134.55,134.44,35.09890515]
[1641665174439,4.0,134.54,134.44,27.66479]
[1641665174639,4.0,134.54,134.42,39.10028706]
[1641665174840,4.0,134.53,134.42,27.66479]
[1641665175042,5.94768289,134.51,134.42,27.66479]
[1641665175245,5.94919565,134.48,134.38,1.859]
[1641665175640,5.95043784,134.45,134.37,7.43798579]
[1641665176042,5.95043784,134.45,134.34,117.13743378]
[1641665176242,5.95043784,134.45,134.38,4.0]
[1641665176441,7.13823581,134.49,134.37,27.66479]
[1641665177242,5.94994353,134.46,134.36,7.43853907]
[1641665177543,5.94994353,134.46,134.35,27.66479]
[1641665177746,5.94994353,134.46,134.36,1.86]
[1641665177945,9.94994353,134.46,134.36,1.86]
[1641665178247,27.66479,134.4,134.36,1.86]
[1641665178446,33.61737294,134.4,134.32,15.51748409]
[1641665178846,33.61737294,134.4,134.29,84.06158409]
[1641665179046,33.61737294,134.4,134.29,15.51748409]
[1641665179249,7.44546199,134.39,134.29,15.51748409]
[1641665179445,33.61737294,134.4,134.29,15.51748409]
[1641665179646,5.95258294,134.4,134.29,15.51748409]
[1641665179846,5.95258294,134.4,134.29,19.51748409]
[1641665180049,5.95258294,134.4,134.3,4.0]
[1641665180248,34.80462244,134.46,134.34,7.43964587]
[1641665180451,34.80462244,134.46,134.35,1.86]
[1641665180649,5.95135752,134.43,134.33,1.86]
[1641665180853,5.95276638,134.4,134.3,1.86]
[1641665181051,5.95276638,134.4,134.35,2.9565351]
[1641665181252,5.95455781,134.36,134.35,3.51e-05]
[1641665181751,5.95455781,134.36,134.32,15.51748409]
[1641665181952,5.95477444,134.35,134.25,15.51748409]
[1641665182353,5.95650826,134.31,134.25,15.51748409]
[1641665182554,5.95650826,134.31,134.25,7.51748409]
[1641665183153,5.95731936,134.29,134.21,27.66479]
[1641665183652,27.66479,134.32,134.21,27.66479]
[1641665184053,5.9571464,134.3,134.21,27.66479]
[1641665184254,14.97541769,134.28,134.19,67.89510763]
[1641665184654,5.95831926,134.27,134.19,67.89510763]
[1641665185057,13.41016173,134.27,134.19,67.89510763]
[1641665185257,10.90841039,134.27,134.19,67.89510763]
[1641665185455,7.45656792,134.27,134.19,61.89510763]
[1641665185655,11.45239781,134.26,134.19,61.89510763]
[1641665185856,14.97541769,134.28,134.19,61.89510763]
[1641665186057,51.66479,134.32,134.19,61.89510763]
[1641665186257,4.0,134.31,134.22,27.66479]
[1641665186660,20.0,134.33,134.22,27.66479]
[1641665186856,4.0,134.35,134.27,7.44379932]
[1641665187057,7.44435346,134.41,134.26,7.44435346]
[1641665187256,76.3841,134.44,134.3,7.44213738]
[1641665187457,15.44213738,134.45,134.3,7.44213738]
[1641665187660,8.0,134.45,134.3,4.0]
[1641665187856,7.44296826,134.43,134.28,11.44296826]
[1641665188057,7.44296826,134.43,134.28,7.44296826]
[1641665188258,7.44296826,134.43,134.35,27.66479]
[1641665188860,35.66479,134.45,134.35,27.66479]
[1641665189059,27.66479,134.47,134.35,27.66479]
[1641665189265,7.43909243,134.5,134.38,11.4374326]
[1641665189459,7.43909243,134.5,134.38,7.4374326]
[1641665189660,20.0,134.54,134.4,7.43660296]
[1641665189862,5.15533268,134.56,134.43,11.43466786]
[1641665190265,27.66479,134.57,134.5,27.66479]
[1641665190460,4.0,134.53,134.44,1.858]
[1641665190660,5.94861979,134.49,134.37,9.29626242]
[1641665190859,9.94861979,134.49,134.37,7.43826242]
[1641665191061,7.4401994,134.48,134.33,7.4401994]
[1641665191261,4.0,134.47,134.33,7.4401994]
[1641665191563,9.9508198,134.44,134.33,7.4401994]
[1641665191760,9.9508198,134.44,134.32,48.43883917]
[1641665191961,5.95303807,134.39,134.32,48.43883917]
[1641665192163,7.14082171,134.44,134.35,7.43936914]
[1641665192364,7.14082171,134.44,134.38,27.66479]
[1641665192562,7.14082171,134.44,134.39,4.0]
[1641665192764,8.0,134.48,134.38,27.66479]
[1641665192964,13.94902393,134.48,134.39,7.43715603]
[1641665193162,13.94902393,134.48,134.42,7.43522064]
[1641665193362,5.94902393,134.48,134.42,7.43522064]
[1641665193764,5.94902393,134.48,134.43,4.0]
[1641665193964,7.43522064,134.57,134.44,1.859]
[1641665194163,4.0,134.56,134.44,1.859]
[1641665194363,5.94680206,134.53,134.5,27.66479]
[1641665194763,5.9447137,134.58,134.5,27.66479]
[1641665195064,5.15533268,134.59,134.5,35.09586676]
[1641665195266,5.15533268,134.62,134.5,35.09586676]
[1641665195464,5.15533268,134.62,134.52,4.0]
[1641665196266,5.15533268,134.62,134.54,7.42859265]
[1641665196463,5.15533268,134.62,134.57,27.66479]
[1641665196665,5.15533268,134.62,134.55,27.66479]
[1641665196865,4.0,134.58,134.44,48.43220083]
[1641665197064,5.94711663,134.52,134.44,40.99780933]
[1641665197666,4.0,134.51,134.44,40.99780933]
[1641665197867,4.0,134.51,134.4,7.43632645]
[1641665198065,5.94897151,134.48,134.4,7.43632645]
[1641665198466,5.94897151,134.48,134.43,27.66479]
[1641665198869,5.94897151,134.48,134.41,27.66479]
[1641665199074,9.94897151,134.48,134.38,7.43770919]
[1641665199270,4.0,134.46,134.37,1.859]
[1641665199471,5.95087201,134.44,134.34,42.85680933]
[1641665199675,5.95087201,134.44,134.36,11.37732875]
[1641665199875,9.95087201,134.44,134.36,11.37732875]
[1641665200273,5.95087201,134.44,134.36,11.37732875]
[1641665200674,5.95087201,134.44,134.34,27.66479]
[1641665202474,17.39328633,134.44,134.34,27.66479]
[1641665202674,4.0,134.37,134.32,94.48719]
[1641665202875,5.95477232,134.35,134.28,42.85780933]
[1641665203075,5.95477232,134.35,134.28,40.99780933]
[1641665203877,5.95477232,134.35,134.25,7.44490768]
[1641665204078,13.40217504,134.35,134.24,69.11999757]
[1641665204281,13.40245237,134.35,134.24,69.11999757]
[1641665204479,13.40245237,134.35,134.25,27.66479]
[1641665204679,5.95477232,134.35,134.25,27.66479]
[1641665205482,5.95794991,134.28,134.25,27.66479]
[1641665205884,7.14703847,134.33,134.25,27.66479]
[1641665206082,13.10291769,134.33,134.25,27.66479]
[1641665206382,4.0,134.28,134.23,27.66479]
[1641665206582,29.95769671,134.29,134.2,40.99780933]
[1641665206782,5.95909688,134.25,134.19,130.55770696]
[1641665206981,5.95909688,134.25,134.19,102.89291696]
[1641665207182,4.0,134.22,134.19,102.89291696]
[1641665207381,20.0,134.23,134.15,60.71051872]
[1641665207382,9.96131363,134.2,134.15,60.71051872]
[1641665207581,5.96131363,134.2,134.15,60.71051872]
[1641665207781,5.96131363,134.2,134.11,175.96448022]
[1641665207983,5.96072952,134.22,134.11,7.45239781]
[1641665208583,5.96072952,134.22,134.15,35.11496694]
[1641665208785,5.96072952,134.22,134.17,4.0]
[1641665208986,27.66479,134.27,134.15,35.11496694]
[1641665209186,8.57913827,134.28,134.15,35.11496694]
[1641665209387,12.57913827,134.28,134.15,35.11496694]
[1641665209587,8.57913827,134.28,134.19,4.0]
[1641665209790,8.57913827,134.28,134.19,7.44823477]
[1641665210187,8.57913827,134.28,134.16,15.37778839]
[1641665210188,7.14793701,134.31,134.2,29.78406553]
[1641665210390,7.44657085,134.37,134.22,7.44657085]
[1641665210588,10.28737717,134.38,134.27,27.66479]
[1641665210789,5.95499032,134.35,134.27,27.66479]
[1641665210989,5.95589336,134.33,134.27,27.66479]
[1641665211891,9.95589336,134.33,134.24,11.37778839]
[1641665212089,5.957311,134.29,134.24,11.37778839]
[1641665212289,4.0,134.28,134.24,11.37778839]
[1641665212490,5.95913966,134.25,134.19,27.66479]
[1641665212689,5.96059538,134.22,134.15,1.862]
[1641665212891,5.96059538,134.22,134.12,60.71051872]
[1641665213489,5.96059538,134.22,134.14,7.45073203]
[1641665213689,5.96059538,134.22,134.12,60.71051872]
[1641665213989,5.96059538,134.22,134.13,15.60255967]
[1641665214189,5.96228126,134.18,134.13,15.60255967]
[1641665214689,4.0,134.17,134.13,15.60255967]
[1641665214888,20.0,134.19,134.13,9.63816116]
[1641665215089,71.2334,134.42,134.13,9.63816116]
[1641665215090,4.0,134.14,134.13,9.63816116]
[1641665215290,7.15547531,134.17,134.06,60.71051872]
[1641665215491,4.0,134.12,134.09,15.60831486]
[1641665215691,7.45906836,134.14,134.09,15.60831486]
[1641665216092,24.0,134.13,134.09,15.60831486]
[1641665216393,7.45906836,134.14,134.09,15.60831486]
[1641665216592,27.66479,134.12,134.09,15.60831486]
[1641665216892,27.66479,134.12,134.02,88.37530872]
[1641665217095,27.66479,134.12,134.02,27.66479]
[1641665217293,7.15641192,134.15,134.02,27.66479]
[1641665217694,14.6152021,134.15,134.04,4.0]
[1641665217892,14.6152021,134.15,134.03,1.864]
[1641665218293,4.0,134.13,134.01,11.28204111]
[1641665218495,27.66479,134.09,134.01,11.28204111]
[1641665219093,27.66479,134.11,134.01,11.28204111]
[1641665219294,27.66479,134.11,134.0,27.66479]
[1641665219499,7.45990302,134.13,134.0,27.66479]
[1641665219694,4.0,134.13,134.0,31.66479]
[1641665219893,8.0,134.14,134.01,7.45823389]
[1641665220093,27.15641192,134.15,134.02,4.0]
[1641665220294,7.15641192,134.15,134.03,7.45684352]
[1641665220493,5.96266907,134.17,134.09,27.66479]
[1641665220693,7.45573159,134.2,134.09,27.66479]
[1641665221096,7.1515222,134.24,134.09,27.66479]
[1641665221395,7.45462,134.22,134.1,7.45295323]
[1641665221594,7.1515222,134.24,134.15,7.45045448]
[1641665221796,20.0,134.31,134.17,7.449067]
[1641665221994,4.0,134.28,134.15,11.45017694]
[1641665222195,4.0,134.28,134.18,7.44851216]
[1641665222394,20.0,134.31,134.18,7.44851216]
[1641665222395,7.45017694,134.3,134.18,7.44851216]
[1641665222595,39.11496694,134.3,134.2,27.66479]
[1641665222795,31.66479,134.3,134.2,27.66479]
[1641665222996,7.45156483,134.28,134.2,27.66479]
[1641665223197,4.0,134.22,134.13,1.862]
[1641665223397,4.0,134.22,134.1,70.09]
[1641665223597,7.1521027,134.23,134.1,70.09]
[1641665223798,11.1521027,134.23,134.1,70.09]
[1641665224097,4.0,134.22,134.1,70.09]
[1641665224298,4.0,134.21,134.1,70.09]
[1641665224498,4.0,134.17,134.1,70.09]
[1641665224697,4.0,134.17,134.09,27.66479]
[1641665224897,4.0,134.15,134.09,27.66479]
[1641665225097,20.0,134.15,134.09,27.66479]
[1641665225298,11.46185129,134.1,134.01,72.3136]
[1641665225498,7.15756889,134.13,134.01,70.4496]
[1641665225697,7.15756889,134.13,134.04,7.45656551]
[1641665225897,5.96363774,134.15,134.06,4.0]
[1641665226099,5.96363774,134.15,134.07,9.31862]
[1641665226401,8.0,134.14,134.06,1.864]
[1641665226599,9.96536768,134.11,134.01,72.3136]
[1641665226797,9.96536768,134.11,134.01,70.4496]
[1641665227197,5.96717175,134.07,134.01,70.4496]
[1641665227498,5.96717175,134.07,133.98,4.0]
[1641665227697,5.96717175,134.07,133.97,1.865]
[1641665227998,5.96717175,134.07,133.98,4.0]
[1641665228197,5.96717175,134.07,133.96,7.46101619]
[1641665228398,5.96717175,134.07,133.99,2.9440807]
[1641665228603,5.96717175,134.07,133.99,30.6088707]
[1641665228802,5.96813974,134.05,133.99,30.6088707]
[1641665229401,5.96813974,134.05,133.99,27.66479]
[1641665229601,9.96813974,134.05,133.96,7.46101619]
[1641665229801,5.97033643,134.0,133.96,7.46101619]
[1641665230601,5.97033643,134.0,133.94,27.66479]
[1641665230802,5.97101476,133.99,133.92,27.66479]
[1641665231403,5.97101476,133.99,133.94,7.46212969]
[1641665231606,7.16385146,134.01,133.98,7.45934656]
[1641665231903,7.16059195,134.07,133.93,4.0]
[1641665232102,4.0,134.09,133.98,7.45990302]
[1641665232301,7.15750616,134.13,134.05,7.45600954]
[1641665232503,7.15750616,134.13,134.11,27.66479]
[1641665232702,5.15533268,134.18,134.11,27.66479]
[1641665232902,7.15433246,134.19,134.11,27.66479]
[1641665233202,7.4573996,134.17,134.11,27.66479]
[1641665233403,4.0,134.18,134.09,27.66479]
[1641665233603,4.0,134.15,134.04,71.8043]
[1641665233807,4.0,134.12,134.02,1.863]
[1641665234007,4.0,134.09,133.99,7.45934656]
[1641665234205,7.16053901,134.07,133.98,41.50181102]
[1641665234608,7.16053901,134.07,133.98,69.16660102]
[1641665234806,7.46407912,134.05,133.98,69.16660102]
[1641665235007,7.16329541,134.02,133.97,2.95255271]
[1641665235306,20.0,134.01,133.97,2.95255271]
[1641665235508,20.0,133.98,133.97,2.95255271]
[1641665235706,7.15137793,133.97,133.95,11.34293317]
[1641665235906,20.0,133.98,133.95,11.34293317]
[1641665236106,24.0,133.98,133.87,41.50181102]
[1641665236309,20.0,133.98,133.87,48.96784059]
[1641665236506,20.0,133.98,133.89,27.66479]
[1641665236708,27.66479,133.99,133.89,27.66479]
[1641665236907,5.97357706,133.93,133.89,27.66479]
[1641665237108,5.97357706,133.93,133.87,69.16660102]
[1641665237407,5.97357706,133.93,133.88,11.34293317]
[1641665238408,5.97482532,133.9,133.88,11.34293317]
[1641665238609,33.63961532,133.9,133.88,11.34293317]
[1641665238812,57.63961532,133.9,133.88,11.34293317]
[1641665239009,51.66479,133.9,133.86,41.50181102]
[1641665239209,47.66479,133.9,133.83,41.50181102]
[1641665239412,51.66479,133.9,133.83,41.50181102]
[1641665239611,8.0,133.89,133.83,41.50181102]
[1641665240012,20.0,133.93,133.83,32.50181102]
[1641665240412,7.47216618,133.91,133.83,32.50181102]
[1641665240613,4.0,133.88,133.83,32.50181102]
[1641665240814,4.0,133.89,133.76,39.9739772]
[1641665241015,4.0,133.88,133.76,39.9739772]
[1641665241314,24.0,133.86,133.76,39.9739772]
[1641665241513,24.0,133.86,133.76,43.9739772]
[1641665241715,7.1705284,133.89,133.76,43.9739772]
[1641665241716,27.1705284,133.89,133.76,39.9739772]
[1641665241913,38.62479,133.93,133.81,7.46909661]
[1641665242115,10.96,133.93,133.81,7.46909661]
[1641665242313,7.16947005,133.91,133.81,7.46909661]
[1641665242516,7.16947005,133.91,133.85,27.66479]
[1641665242713,27.66479,133.96,133.85,27.66479]
[1641665242915,27.66479,133.96,133.84,7.46742337]
[1641665243114,42.30045062,133.96,133.81,7.46909661]
[1641665243515,4.0,133.9,133.79,7.47049156]
[1641665243716,4.0,133.9,133.76,92.45948495]
[1641665243916,4.0,133.91,133.77,7.47160789]
[1641665244115,27.47160789,133.92,133.77,7.47160789]
[1641665244316,24.0,133.88,133.77,7.47160789]
[1641665244717,20.0,133.88,133.8,27.66479]
[1641665245017,24.0,133.87,133.8,27.66479]
[1641665245219,7.47132878,133.92,133.8,27.66479]
[1641665245417,24.0,133.93,133.82,7.46853878]
[1641665245618,8.0,133.91,133.86,7.46630828]
[1641665245818,12.0,133.91,133.86,7.46658702]
[1641665246017,7.16760384,133.94,133.86,7.46658702]
[1641665246018,11.16760384,133.94,133.86,7.46658702]
[1641665246216,5.15533268,134.06,133.85,1.31842408]
[1641665246217,2.68157592,133.96,133.85,1.31842408]
[1641665246419,2.68157592,133.98,133.89,7.46463629]
[1641665246718,11.27684744,134.03,133.95,27.66479]
[1641665246919,27.66479,134.06,133.95,27.66479]
[1641665247217,7.4649149,134.04,133.95,27.66479]
[1641665247420,8.5920275,134.08,133.96,7.46101619]
[1641665247617,8.5920275,134.08,133.95,27.66479]
[1641665247618,2.68157592,134.06,133.95,27.66479]
[1641665247818,8.5920275,134.08,133.95,27.66479]
[1641665248020,2.68157592,134.08,133.95,27.66479]
[1641665248318,2.68157592,134.08,133.99,1.31842408]
[1641665248518,20.0,134.1,133.99,1.31842408]
[1641665248717,27.45990302,134.13,134.03,27.66479]
[1641665248918,20.0,134.13,134.03,28.98321408]
[1641665249121,20.0,134.13,134.03,27.66479]
[1641665249318,5.96680115,134.08,134.03,27.66479]
[1641665249519,30.34636592,134.18,134.06,1.31842408]
[1641665249719,30.34636592,134.18,134.07,7.45489787]
[1641665249919,27.66479,134.18,134.08,1.31842408]
[1641665250122,8.0,134.17,134.06,7.45545366]
[1641665250320,8.0,134.17,134.1,1.31842408]
[1641665250521,8.0,134.17,134.11,1.31842408]
[1641665250720,8.0,134.17,134.15,27.66479]
[1641665250921,55.5016986,134.25,134.15,27.66479]
[1641665251122,32.82012268,134.25,134.15,27.66479]
[1641665251322,7.45239781,134.26,134.15,28.98321408]
[1641665251523,7.45239781,134.26,134.19,1.31842408]
[1641665251726,27.66479,134.27,134.19,1.31842408]
[1641665251925,7.45239781,134.26,134.17,1.31842408]
[1641665252124,35.11691013,134.27,134.15,28.98321408]
[1641665252423,7.45489787,134.22,134.11,1.862]
[1641665252625,7.45628751,134.19,134.1,28.98321408]
[1641665252925,2.68157592,134.13,134.05,15.60604909]
[1641665253124,30.14092248,134.14,134.05,15.60604909]
[1641665253325,30.14092248,134.14,134.04,1.31842408]
[1641665253527,2.68157592,134.13,134.03,1.31842408]
[1641665253724,30.14092248,134.14,134.02,15.60604909]
[1641665253926,2.68157592,134.08,134.02,15.60604909]
[1641665254125,22.68157592,134.06,133.97,151.67264909]
[1641665254326,22.68157592,134.06,133.97,81.57674909]
[1641665254726,7.46407912,134.05,133.97,109.24153909]
[1641665255025,7.46407912,134.05,133.97,43.27083909]
[1641665255226,2.68157592,134.05,133.97,27.66479]
[1641665255426,30.14509796,134.06,133.97,27.66479]
[1641665255727,2.68157592,134.05,133.97,28.98321408]
[1641665256128,22.68157592,134.03,133.97,28.98321408]
[1641665256328,20.0,134.03,133.97,1.31842408]
[1641665256528,7.46352204,134.06,133.97,1.31842408]
[1641665256730,20.0,134.07,134.01,1.31842408]
[1641665256931,34.82522204,134.08,133.98,27.66479]
[1641665257129,8.0,134.04,133.98,39.12441478]
[1641665257330,8.0,134.04,134.03,1.31842408]
[1641665257529,2.68157592,134.11,134.03,1.31842408]
[1641665257729,20.0,134.13,133.99,7.45934656]
[1641665257931,5.15533268,134.16,134.02,7.4573996]
[1641665258131,5.15533268,134.16,134.06,1.31842408]
[1641665258330,5.15533268,134.16,134.07,1.31842408]
[1641665258530,5.15533268,134.16,134.07,4.0]
[1641665258731,5.15533268,134.16,134.09,27.66479]
[1641665258930,22.76061341,134.19,134.13,1.31842408]
[1641665259131,7.15456432,134.19,134.09,27.66479]
[1641665259333,5.15533268,134.2,134.13,7.45128721]
[1641665259538,5.15533268,134.2,134.16,1.31842408]
[1641665259733,15.60604909,134.23,134.14,4.0]
[1641665259933,15.60604909,134.23,134.15,7.45045448]
[1641665260137,15.60604909,134.28,134.22,1.31842408]
[1641665260334,15.60604909,134.28,134.19,7.4479574]
[1641665260533,15.60604909,134.28,134.2,1.31842408]
[1641665260734,5.9593794,134.25,134.2,27.66479]
[1641665261334,7.14804514,134.31,134.2,27.66479]
[1641665261535,15.60604909,134.33,134.3,1.31842408]
[1641665261734,21.56184375,134.33,134.32,1.31842408]
[1641665261933,15.60604909,134.33,134.32,1.31842408]
[1641665262434,7.00534294,134.38,134.32,1.31842408]
[1641665262634,7.00534294,134.38,134.37,1.31842408]
[1641665263534,41.76942652,134.41,134.36,1.31842408]
[1641665263734,9.8231101,134.43,134.35,27.66479]
[1641665263934,7.14153418,134.43,134.35,27.66479]
[1641665264335,7.14153418,134.43,134.35,28.98321408]
[1641665264536,7.14153418,134.43,134.35,27.66479]
[1641665264736,7.14153418,134.43,134.41,1.31842408]
[1641665264935,7.14153418,134.43,134.37,4.0]
[1641665265135,5.94862978,134.49,134.42,5.31842408]
[1641665265334,41.76942652,134.55,134.48,1.31842408]
[1641665265534,41.76942652,134.55,134.46,4.0]
[1641665265535,41.76942652,134.55,134.46,7.43273376]
[1641665265734,41.76942652,134.55,134.49,7.43107676]
[1641665266034,5.94537191,134.56,134.54,1.31842408]
[1641665266234,5.94537191,134.56,134.49,4.0]
[1641665266436,7.13150606,134.62,134.53,7.42886858]
[1641665266636,7.13150606,134.62,134.54,11.42831674]
[1641665266838,7.13150606,134.62,134.58,28.98321408]
[1641665267037,7.13150606,134.62,134.58,27.66479]
[1641665267242,5.9437671,134.6,134.58,28.98321408]
[1641665267638,5.94071283,134.67,134.58,28.98321408]
[1641665268243,21.12118476,134.66,134.58,28.98321408]
[1641665268442,21.12118476,134.66,134.61,1.31842408]
[1641665268640,21.12118476,134.66,134.65,1.31842408]
[1641665268843,7.12739641,134.7,134.65,56.64800408]
[1641665269041,7.12739641,134.7,134.66,1.31842408]
[1641665269242,7.12739641,134.7,134.67,7.42115028]
[1641665269643,5.93683837,134.76,134.65,62.75210737]
[1641665269845,5.93683837,134.76,134.68,1.31842408]
[1641665270043,5.93683837,134.76,134.67,1.31842408]
[1641665270243,5.93683837,134.76,134.66,1.31842408]
[1641665270444,5.93855982,134.72,134.65,56.64800408]
[1641665270642,5.93855982,134.72,134.66,1.31842408]
[1641665270843,5.93855982,134.72,134.65,55.32958]
[1641665271043,21.11150931,134.75,134.65,55.32958]
[1641665271044,21.11150931,134.75,134.71,1.31842408]
[1641665271243,5.93749775,134.74,134.71,1.31842408]
[1641665271443,5.93749775,134.74,134.66,11.42197647]
[1641665271642,5.93749775,134.74,134.65,55.32958]
[1641665271643,5.93517268,134.79,134.73,1.31842408]
[1641665271844,5.93517268,134.79,134.72,1.31842408]
[1641665272043,47.16495134,134.86,134.78,1.31842408]
[1641665272243,47.16495134,134.86,134.77,7.41592198]
[1641665272446,8.53851463,134.92,134.85,1.31842408]
[1641665272645,47.16495134,134.95,134.85,1.31842408]
[1641665272944,21.08469927,134.94,134.86,28.98321408]
[1641665273348,21.08469927,134.94,134.89,1.31842408]
[1641665273551,27.66479,134.96,134.88,1.31842408]
[1641665273945,27.66479,134.96,134.87,1.31842408]
[1641665274145,2.68157592,134.93,134.86,28.98321408]
[1641665274346,5.92920851,134.93,134.86,1.31842408]